Cogmind - Beta 13 @@@ ROGUE MODE // 2024.04.18 @ 14:52:40 Player: KIWA Result: Destroyed by H-61 Shepherd with Heavy Assault Cannon Performance ------------- Evolutions (2) 1000 Regions Visited (5) 1000 Robots Destroyed (42) 210 Value Destroyed (944) 944 Prototype IDs (3) 60 Alien Tech Used (0) 0 Bonus (-13) -13 TOTAL SCORE: 3201 Bonus ------- Follower Combat Kills 14 Friendly Fire -27 Cogmind --------- Core Integrity 0/550 Matter 257/300 Energy 100/100 System Corruption 4% Temperature Cool (0) Movement Core (350) Ox6 Location -8/Materials Parts ------- > --- POWER (1) -------- (None) > --- PROPULSION (4) --- (None) > --- UTILITY (4) ------ Large Storage Unit Hacking Suite > --- WEAPON (2) ------- (None) > --- INVENTORY (15) --- Cooled Ion Engine Hover Unit Improved Sensor Array Improved Signal Interpreter Improved Terrain Scan Processor Improved Targeting Computer Advanced Targeting Computer Particle Charger Transmission Jammer Reaction Control System Reaction Control System Improved Medium Armor Plating Light EM Pulse Cannon Gauss Rifle Peak State ------------ > --- POWER ------------ Cooled Ion Engine > --- PROPULSION ------- Hover Unit Aerolev Unit Combat Airjet Combat Airjet > --- UTILITY ---------- Large Storage Unit Hacking Suite Hacking Suite System Shield > --- WEAPON ----------- Heavy Particle Gun Gauss Rifle > --- INVENTORY -------- Cooled Ion Engine Hover Unit Improved Sensor Array Improved Signal Interpreter Improved Terrain Scan Processor Improved Targeting Computer Advanced Targeting Computer Particle Charger Transmission Jammer Reaction Control System Reaction Control System Improved Medium Armor Plating Light EM Pulse Cannon Gauss Rifle Shock Bomb Launcher [Rating: 40] Favorites ----------- Power Ion Engine Engine Ion Engine Propulsion Light Treads Treads Light Treads Leg Aluminum Leg Hover Unit Combat Airjet Utility Large Storage Unit Device ECM Suite Storage Large Storage Unit Processor Improved Targeting Computer Hackware Hacking Suite Protection Improved Medium Armor Plating Weapon Light EM Pulse Cannon Energy Gun Medium Laser Energy Cannon Light EM Pulse Cannon Ballistic Gun Gauss Rifle Launcher Shock Bomb Launcher Build | -11 -10 -10 -10 -9 -8 ------- Run | Yrd Mat Min Exi Min Mat Slots Evolved 4 | . . . . . 4 Power . | . . . . . . Propulsion 2 | . . . . . 2 Utility 2 | . . . . . 2 Weapon . | . . . . . . Parts Attached 51 | 3 9 . 2 2 35 Power 3 | . . . 1 . 2 Engine 3 | . . . 1 . 2 Core . | . . . . . . Reactor . | . . . . . . Propulsion 13 | 2 . . 1 . 10 Treads 5 | 2 . . 1 . 2 Leg . | . . . . . . Wheel . | . . . . . . Hover 8 | . . . . . 8 Flight . | . . . . . . Utility 17 | . 3 . . 1 13 Device 9 | . 1 . . . 8 Storage 1 | . 1 . . . . Processor 1 | . . . . . 1 Hackware 3 | . . . . . 3 Protection 3 | . 1 . . 1 1 Artifact . | . . . . . . Weapon 18 | 1 6 . . 1 10 Energy Gun 3 | . 1 . . . 2 Energy Cannon 6 | . 3 . . . 3 Ballistic Gun 7 | 1 2 . . 1 3 Ballistic Cannon . | . . . . . . Launcher 2 | . . . . . 2 Special Weapon . | . . . . . . Impact Weapon . | . . . . . . Slashing Weapon . | . . . . . . Piercing Weapon . | . . . . . . Special Melee Weapon . | . . . . . . Unidentified Prototypes 3 | . . . . . 3 Parts Lost 8 | . . . . . 8 Power . | . . . . . . Propulsion 2 | . . . . . 2 Utility 4 | . . . . . 4 Weapon 2 | . . . . . 2 Highest Loss Streak 4 | . . . . . 4 To Critical Strikes . | . . . . . . Average Slot Usage (%) 98 | . 98 100 100 100 95 Engine 12 | . 14 14 14 14 8 Treads 25 | . 28 28 28 28 17 Hover 4 | . . . . . 16 Device 10 | . 10 14 14 5 6 Storage 12 | . 14 14 14 14 9 Processor 1 | . . . . . 6 Hackware 1 | . . . . . 6 Protection 3 | . 2 . . 8 6 Energy Cannon 15 | . 10 28 28 15 5 Ballistic Gun 8 | . 14 . . 12 10 Naked Turns . | . . . . . . Heaviest Build 45 | 13 35 35 35 35 45 Greatest Support 82 | 40 40 40 40 40 82 Greatest Overweight (x) 1 | . . . . . 1 Average Overweight (x) . | . . . . . . Largest Inventory Capacity 15 | 8 15 15 15 15 15 Average Capacity 14 | 8 14 15 15 15 15 Most Carried 15 | 6 15 14 14 15 15 Average Carried 12 | 6 11 14 13 14 13 Final Capacity 15 | 8 15 15 15 15 15 Final Carried 15 | 6 14 14 12 15 14 Class Distribution -------------------- 92% | Mutant 6% | Hacker-Mutant Dominant Class ---------------- Mutant | -10/Materials Mutant | -10/Mines Mutant | -10/Exiles Mutant | -9/Mines Mutant | -8/Materials Resources | -11 -10 -10 -10 -9 -8 ----------- Run | Yrd Mat Min Exi Min Mat Matter Collected 1052 | 230 156 34 . 48 584 Remotely . | . . . . . . Salvage Created 1267 | . 203 154 . 82 828 Parts 98 | . 19 11 . 5 63 Haulers Intercepted 2 | . 1 . . . 1 Recyclers Shooed . | . . . . . . Parts Field Recycled . | . . . . . . Retrieved Matter . | . . . . . . Parts Self-Destructed . | . . . . . . Prevented . | . . . . . . Kills | -11 -10 -10 -10 -9 -8 ------- Run | Yrd Mat Min Exi Min Mat Combat Hostiles Destroyed 29 | . 4 5 . 5 15 Guns 15 | . 4 . . . 11 Cannons 14 | . . 5 . 5 4 Classes Destroyed 12 | . 6 . . 1 5 Worker 1 | . . . . . 1 Builder 4 | . 1 . . . 3 Hauler 2 | . 1 . . . 1 Operator 3 | . 1 . . . 2 Watcher 5 | . 2 . . . 3 Swarmer 13 | . 3 3 . 3 4 Cutter 2 | . . . . . 2 Grunt 7 | . 1 2 . . 4 Duelist 1 | . . . . . 1 Sentry 2 | . . . . . 2 Hunter 2 | . . . . . 2 Assembled 2 | . . . . 2 . Best Kill Streak 4 | . 3 2 . 3 4 Combat Bots Only 4 | . 3 2 . 3 4 Max Kills in Single Turn 2 | . 1 2 . 1 1 Gunslinging . | . . . . . . Exploded . | . . . . . . Melee . | . . . . . . Uniques/NPCs Destroyed . | . . . . . . Combat | -11 -10 -10 -10 -9 -8 -------- Run | Yrd Mat Min Exi Min Mat Hostile Shots Fired 170 | . 14 19 . 25 112 Missed 59 | . 4 5 . 7 43 Damage Taken 1921 | . 71 148 . 247 1455 Core 600 | . . 13 . 28 559 Absorbed by Shields . | . . . . . . Core Remaining (%) 91 | 100 . . . 83 . Volleys Fired 118 | . 33 8 . 13 64 Largest 2 | . 2 2 . 2 2 Hottest 112 | . 80 112 . 112 84 Shots Fired 215 | . 66 16 . 26 107 Gun 141 | . 53 . . 8 80 Cannon 69 | . 13 16 . 18 22 Launcher 5 | . . . . . 5 Special . | . . . . . . Kinetic 124 | . 43 . . 8 73 Thermal 30 | . 23 . . . 7 Explosive . | . . . . . . Electromagnetic 61 | . . 16 . 18 27 Robot Hit Streak 12 | . 4 7 . 4 12 Robot Miss Streak 8 | . 5 8 . 2 5 Penetration Max 1 | . . . . . 1 Secondary Targets . | . . . . . . Shots Hit Robots 114 | . 25 8 . 14 67 Core Hits 67 | . 14 6 . 8 39 Critical Kills 1 | . 1 . . . . Critical Parts Destroyed 2 | . . . . . 2 Critical Strikes 5 | . 1 . . . 4 Burn 2 | . . . . . 2 Destroy 3 | . 1 . . . 2 Melee Attacks . | . . . . . . Impact . | . . . . . . Slashing . | . . . . . . Piercing . | . . . . . . Sneak Attacks . | . . . . . . Combat Hostiles . | . . . . . . Follow-up Attacks . | . . . . . . Damage Inflicted 2450 | . 368 214 . 229 1639 Guns 1278 | . 251 . . 51 976 Cannons 869 | . 104 214 . 178 373 Explosions 290 | . . . . . 290 Melee . | . . . . . . Ramming 13 | . 13 . . . . Kinetic 1153 | . 202 . . 51 900 Thermal 394 | . 153 . . . 241 Explosive . | . . . . . . Electromagnetic 890 | . . 214 . 178 498 Impact . | . . . . . . Slashing . | . . . . . . Piercing . | . . . . . . Highest Corruption 4 | . . . . . 4 Average Corruption 4 | . . . . . 4 Corruption Purged . | . . . . . . Corruption Blocked . | . . . . . . Effects 1 | . . . . . 1 Misfires 1 | . . . . . 1 Overload Shots . | . . . . . . Overflow Damage 47 | . . . . 18 29 Projectiles 18 | . . . . 18 . Explosions 29 | . . . . . 29 Melee . | . . . . . . Knockbacks . | . . . . . . Impact . | . . . . . . Kinetic . | . . . . . . Secondary . | . . . . . . Self-Inflicted Damage 56 | . . . . . 56 Shots 2 | . . . . . 2 Rammed 4 | . 4 . . . . Targets Rammed 4 | . 4 . . . . Kicked . | . . . . . . Crushed . | . . . . . . Highest Temperature 194 | . 54 186 . 194 126 Average Temperature 43 | . 15 74 . 77 34 Received Heat Transfer 380 | . . 45 . 20 315 Siege Activations . | . . . . . . Robots Corrupted . | . . . . . . Combat Hostiles . | . . . . . . Parts Fried 6 | . . 1 . . 5 Impact Corruptions . | . . . . . . Robots Melted . | . . . . . . Combat Hostiles . | . . . . . . Parts Melted . | . . . . . . Heat Transferred 816 | . 370 . . . 446 Parts Sabotaged . | . . . . . . Parts Stolen . | . . . . . . Parts Stripped . | . . . . . . Power Chain Reactions 2 | . . . . . 2 Alert | -11 -10 -10 -10 -9 -8 ------- Run | Yrd Mat Min Exi Min Mat Peak Influence 265 | . 174 139 . 70 265 Initial 4 | . . 4 . . . Average 59 | . 41 45 . 61 89 Maximum Alert Level 1 | . . . . . 1 Low Security (%) 95 | 100 100 100 . 100 85 Level 1 4 | . . . . . 14 Level 2 . | . . . . . . Level 3 . | . . . . . . Level 4 . | . . . . . . Level 5 . | . . . . . . High Security . | . . . . . . Max Security . | . . . . . . Squads Dispatched 6 | . 2 . . . 4 Investigation 1 | . 1 . . . . Extermination . | . . . . . . Reinforcement 5 | . 1 . . . 4 Assault . | . . . . . . Garrison . | . . . . . . Intercept . | . . . . . . Searches Triggered . | . . . . . . Construction Impeded . | . . . . . . Haulers Reinforced . | . . . . . . Active Scanning Responses . | . . . . . . Cargo Convoy Interrupts . | . . . . . . Stealth | -11 -10 -10 -10 -9 -8 --------- Run | Yrd Mat Min Exi Min Mat Distress Signals 2 | . 2 . . . . Communications Jammed 19 | . . . . . 19 Distress Signals 19 | . . . . . 19 Times Spotted 75 | . 21 4 . 12 38 Peak Tracking Total 9 | . 5 2 . 4 9 Tactical Retreats 7 | . 1 1 . 3 2 Traps | -11 -10 -10 -10 -9 -8 ------- Run | Yrd Mat Min Exi Min Mat Traps Triggered 2 | . 1 . . . 1 Indirectly 1 | . . . . . 1 Trap Hack Attempts . | . . . . . . Triggered . | . . . . . . Disarmed . | . . . . . . Reprogrammed . | . . . . . . Reused . | . . . . . . Traps Extracted . | . . . . . . Installed . | . . . . . . Triggered . | . . . . . . Machines | -11 -10 -10 -10 -9 -8 ---------- Run | Yrd Mat Min Exi Min Mat Machines Disabled 6 | . 2 1 . . 3 Max in Single Turn 1 | . 1 1 . . 1 Garrison Access 1 | . . . . . 1 Machines Repaired . | . . . . . . Machines Dismantled . | . . . . . . Machines Sabotaged . | . . . . . . Overloaded Fab Kills . | . . . . . . Hacking | -11 -10 -10 -10 -9 -8 --------- Run | Yrd Mat Min Exi Min Mat Machines Accessed 15 | . 6 . 4 . 5 Terminals 7 | . 5 . . . 2 Fabricators . | . . . . . . Repair Stations 1 | . . . . . 1 Recycling Units 2 | . 1 . . . 1 Scanalyzers . | . . . . . . Garrison Access 1 | . . . . . 1 Total Hacks 40 | . 19 . 4 . 17 Successful 27 | . 10 . 4 . 13 Failed 13 | . 9 . . . 4 Catastrophic 1 | . 1 . . . . Database Lockouts . | . . . . . . Manual . | . . . . . . Terminals 27 | . 18 . . . 9 Fabricators . | . . . . . . Repair Stations 3 | . . . . . 3 Recycling Units 2 | . 1 . . . 1 Scanalyzers . | . . . . . . Garrison Access 4 | . . . . . 4 Terminal Hacks 22 | . 9 . 4 . 9 Record 6 | . . . 4 . 2 Emergency Access Points 2 | . 2 . . . . Alert Level 3 | . 1 . . . 2 Unreport Threat 1 | . . . . . 1 Locate Traps 2 | . 2 . . . . Surveillance Status 1 | . . . . . 1 Transport Status 1 | . . . . . 1 Investigation Status 1 | . 1 . . . . Assault Status 1 | . 1 . . . . Recall Investigation 1 | . . . . . 1 Hauler Manifests 1 | . 1 . . . . Zone Layout 2 | . 1 . . . 1 Fabricator Hacks . | . . . . . . Repair Station Hacks 2 | . . . . . 2 Scan Component 2 | . . . . . 2 Recycling Unit Hacks 2 | . 1 . . . 1 Report Inventory 2 | . 1 . . . 1 Scanalyzer . | . . . . . . Garrison Access Hacks 1 | . . . . . 1 Seal Access 1 | . . . . . 1 Unauthorized Hacks . | . . . . . . Terminals . | . . . . . . Fabricators . | . . . . . . Repair Stations . | . . . . . . Recycling Units . | . . . . . . Scanalyzers . | . . . . . . Garrison Access . | . . . . . . Data Cores Recovered 1 | . . . . . 1 Used 1 | . . . . . 1 Hacking Detections 9 | . 5 . . . 4 Full Trace Events . | . . . . . . Feedback Events . | . . . . . . Feedback Blocked . | . . . . . . Robot Schematics Acquired . | . . . . . . Robots Built . | . . . . . . Authchips . | . . . . . . Time . | . . . . . . Total Robot Build Rating . | . . . . . . Part Schematics Acquired . | . . . . . . Parts Built . | . . . . . . Authchips . | . . . . . . Time . | . . . . . . Total Part Build Rating . | . . . . . . Parts Repaired . | . . . . . . Time . | . . . . . . Parts Recycled . | . . . . . . Recycled Matter . | . . . . . . Retrieved Matter . | . . . . . . Retrieved Components . | . . . . . . Parts Scanalyzed . | . . . . . . Part Schematics Acquired . | . . . . . . Parts Damaged . | . . . . . . Bothacking | -11 -10 -10 -10 -9 -8 ------------ Run | Yrd Mat Min Exi Min Mat Used RIF Installer . | . . . . . . Robots Hacked . | . . . . . . Non-combat . | . . . . . . Combat . | . . . . . . Robot Hacks Applied . | . . . . . . Relay Couplers Released . | . . . . . . Fabnet Peak Effective % . | . . . . . . Robots Rewired . | . . . . . . Allies Hacked . | . . . . . . Hacks Repelled . | . . . . . . Allies | -11 -10 -10 -10 -9 -8 -------- Run | Yrd Mat Min Exi Min Mat Total Allies 3 | . . 3 . . . Largest Group 3 | . . 3 3 3 . Highest-Rated Group 40 | . . 40 40 40 . Highest-Rated Ally 16 | . . 16 16 16 . Total Orders . | . . . . . . Ally Attacks 18 | . . . . 18 . Total Damage 113 | . . . . 113 . Kills 2 | . . . . 2 . Allies Corrupted . | . . . . . . Allies Melted . | . . . . . . Intel | -11 -10 -10 -10 -9 -8 ------- Run | Yrd Mat Min Exi Min Mat Robot Analysis Total . | . . . . . . Derelict Logs Recovered 5 | . . 3 . 2 . Drone Launches . | . . . . . . Drone Recoveries . | . . . . . . Exploration | -11 -10 -10 -10 -9 -8 ------------- Run | Yrd Mat Min Exi Min Mat Turns Passed 4290 | 13 1157 850 744 438 1088 Spaces Moved 2346 | 6 548 506 463 236 587 Core . | . . . . . . Treads 1910 | 6 548 506 463 236 151 Legs . | . . . . . . Wheels . | . . . . . . Hover 436 | . . . . . 436 Flight . | . . . . . . Fastest Speed 56 | 160 160 160 160 160 56 Average Speed 149 | 160 160 160 160 160 119 Slowest Speed 187 | 160 160 160 160 160 187 Overloaded Moves . | . . . . . . Propulsion Burnouts . | . . . . . . Robots Hopped . | . . . . . . Cave-ins Triggered . | . . . . . . Exploration Rate (%) 56 | 2 57 98 89 49 46 Regions Visited 5 Branch Regions 3 Pre-discovered Areas 1 | . . 1 . . . Known Exits Taken . | . . . . . . Unknown Exits Taken 5 | 1 1 1 1 1 . Scrap Searched 2 | . . 2 . . . Spaces Dug . | . . . . . . Terrain Destroyed 6 | . . . . . 6 Melee . | . . . . . . Projectile 1 | . . . . . 1 AOE 5 | . . . . . 5 Terrain Rammed . | . . . . . . Walls Destroyed . | . . . . . . Machines Disabled . | . . . . . . Actions | -11 -10 -10 -10 -9 -8 --------- Run | Yrd Mat Min Exi Min Mat Total 2904 | 8 761 531 466 272 866 Wait 322 | . 147 18 . 17 140 Move 2341 | 5 547 505 462 235 587 Hop . | . . . . . . Pick Up 42 | . 15 . . 4 23 Fast Attach 2 | . . . . . 2 Attach 13 | . 1 . . . 12 Detach . | . . . . . . Swap 36 | 3 8 . 2 2 21 Drop 26 | . 6 . 2 1 17 Fire 118 | . 33 8 . 13 64 Melee . | . . . . . . Ram . | . . . . . . Kick . | . . . . . . Crush 4 | . 4 . . . . Escape Stasis . | . . . . . . Rewire . | . . . . . . Trap . | . . . . . . Miscellaneous . | . . . . . . Route ------- -11/Scrapyard -10/Materials (discovered 2 exits: [*Mat] / [*Min]) -10/Mines (discovered 3 exits: [*Mat x2] / *Exi) -10/Exiles -9/Mines -8/Materials (discovered 2 exits: Fac x2) History --------- Turn | Location | Event 6 | -11/Scrapyard | Discovered new exit (range 3) 14 | -11/Scrapyard | Entered Materials 314 | -10/Materials | Build established: Mutant 360 | -10/Materials | Discovered new exit (range 11) 462 | -10/Materials | Discovered new exit (range 16) 1171 | -10/Materials | Entered Mines 1287 | -10/Mines | Learned location of Storage (-9) 1287 | -10/Mines | Discovered new exit (range 8) 1553 | -10/Mines | Learned location of 1 exit from Materials 1553 | -10/Mines | Discovered new exit (range 5) 1668 | -10/Mines | Learned 4 Materials zone layouts 1700 | -10/Mines | Learned Materials garrison access intel 1745 | -10/Mines | Assisted by bots powering up and referring to "LRC-V3" 2015 | -10/Mines | Deemed a non-threat by the Exiles lab entrance 2015 | -10/Mines | Discovered new exit (range 5) 2021 | -10/Mines | Entered Exiles 2021 | -10/Exiles | Found Exiles lab abandoned 2021 | -10/Exiles | Accompanied by 3 allies 2742 | -10/Exiles | Discovered new exit (range 15) 2765 | -10/Exiles | Entered Mines 2765 | -9/Mines | Accompanied by 3 allies 2812 | -9/Mines | Lost 3 allies 2830 | -9/Mines | Learned Materials emergency access door positions 2831 | -9/Mines | Assembled infested the area 2847 | -9/Mines | Learned location of 1 exit from Materials 3171 | -9/Mines | Discovered new exit (range 10) 3203 | -9/Mines | Entered Materials 3203 | -8/Materials | Evolved 4 slots: Propulsion x2, Utility x2 3204 | -8/Materials | Identified exit to Factory 3207 | -8/Materials | Loaded intel: 1 garrison access location 4281 | -8/Materials | Core integrity fell below 50% 4289 | -8/Materials | Core integrity fell below 20% 4291 | -8/Materials | Destroyed by H-61 Shepherd with Heavy Assault Cannon Last Messages --------------- 04271_ Cmb. Airjet severed. 04272_ U-05 Engineer lays Concrete. 04273_ C-17 Slicer suffers critical hit (Burn). 04273_ C-17 Slicer destroyed. 04274_ U-05 Engineer lays Concrete. 04275_ U-05 Engineer destroyed. 04276_ Aerolev Unit severed. 04276_ Slug penetrates Wall. 04277_ T-07 Excavator is excavating. 04277_ Hvy. Particle Gun severed. 04278_ Slug penetrates Wall. 04278_ C-17 Slicer destroyed. 04279_ Cmb. Airjet severed. 04280_ C-17 Slicer destroyed. 04281_ T-07 Excavator is excavating. 04281_ K-01 Serf collects debris. 04284_ Reaction Control System destroyed. 04287_ K-01 Serf collects debris. 04291_ K-01 Serf cleans the Nuclear Reactor. 04291_ Penetrated by Slug. Map ----- +----------------------------------------------------+ | " # = = #????# #???????????????????? | | # #????# T ##################### | | # #????# # | | *# #????# # | | # ##### #????# # | | ###???# #????# ################ # | | ??############????# #??????????????????? | | ??# #????????# """ #??????????????????? | | ??# "" #????????# """ #??????????????????? | | ??# """ #????????# """ #??????????????????? | | ??# R" #????????# """ #??????????????????? | | ??# """ #????????# #??????????????????? | | ??# #????????# #??????????????????? | | ??####+###?####???# #######+###??????????????????? | | ???# #?# ???# ????# #??????????????????? | | ???# ### ???# ????# ! #??????????????????? | | ???# ?????????# ! #??????????????????? | | ???# ### ?????????#""" #??????????????????? | | ???# #?# ?????????#""" #??????????????????? | | ???#######?## ?#########""" #??????????????????? | | ????????????# # t #+ #??????????????????? | | ????????????# /g ###+###??????????????????? | | ????????????# ?# #?# #????????????????????? | | ???????###### ??# %/## #????????????????????? | | ???????# T # ## %[%# #????????????????????? | | ???????# # gg ===@=/#????????????????????? | | ???????# # =!%*######?????????????????? | | ???????# # =!= #?????????????????? | | ???????# # ! ; *=[ #?????????????????? | | ???????# # """ gH=; #?????????????????? | | ######## # """"" g##% [[ #?????????????????? | | ????????????+ """"" ## [[! #???????? # | | ????????????# """"" ## [[ #???????? # | | ????????????# ? """ # k #???????? # | | ???????????????? # """ #???????? # | | ??????????????? + """ #????????#### | | ??????????????? %= # """ #????????########## | | ???????????????### # #???????? # | | ?????????????????# ##########???????? # | | ?????????????????# #?????????????????""" + | | ?????????????????# % #?????????????????""" # | | ?????????????????# ??????????????????""" # | | ?????????????????# ?????????????????? # | | ??????????????????? ??????????????????###### | | ?????????????????????????????????????????????# | | ?????????????????????????????????????????????# < # | | ?????????????????????????????????????????????# # | | ?????????????????????????????????????????????##### | | ?????????????????????????????????????????????????# | | ?????????????????????????????????????????????????# | +----------------------------------------------------+ Best States ------------- Heat Dissipation 31 Energy Generation 14 Energy Capacity 280 Matter Stores 300 Matter Capacity 300 Sight Range 16 Terrain Scan Density 10 ECM Strength 1 Jamming Range 12 Armor Coverage 225 Evasion (%) 61 Targeting Accuracy 6 Recoil Reduction 4 Particle Charging 15 Offensive Hacking 20 Defensive Hacking 10 Item Schematics ----------------- None Robot Schematics ------------------ None Fabricated ------------ Nothing Alien Tech Used ----------------- None Achievements -------------- None Challenges ------------ None Game ------ Seed PlatingRecyclingNanosword Manual? 0 Play Time 00:42:21 Cumulative 13.3 hours Start 2024.04.18 @ 14:11:47 End 2024.04.18 @ 14:52:40 Sessions 1 Manual Loads 0 Difficulty Rogue Special Mode None Game No. 27 Rogue 27 Adventurer 0 Explorer 0 Win Type - Total 0 Types 0/0/0/0/0/0/0/0/0 Lore% 16 Gallery% 23 Achievement% 19 Wizard Run 0 Options --------- Layout 1 ASCII 0 Keyboard 0 Movement Mouse Keybinds 0 Fullscreen 2 Font 48/Smallcaps Map View 50x35 Zoom Use 0% Tactical HUD 1 Map Filters NONE Filters NONE Steam 1 RUN: a2e90239-5e1b-43b4-a7a1-932351484569